fUSD/lending_fUSD_20251017
["ID","MTS","AMOUNT","RATE_DAILY","PERIOD"]
[391632756,1760710249862,-500.0,0.00025205,2]
[391632757,1760710249871,-500.0,0.00025205,2]
[391632758,1760710249885,-500.0,0.00025205,2]
[391632759,1760710249895,-500.0,0.00025205,2]
[391632760,1760710249905,-500.0,0.00025205,2]
[391632761,1760710249915,-500.0,0.00025205,2]
[391632762,1760710249926,-190.34031939,0.00025205,2]
[391632763,1760710249938,-500.0,0.00025205,2]
[391632764,1760710249951,-500.0,0.00025205,2]
[391632765,1760710249962,-500.0,0.00025205,2]
[391632766,1760710249973,-500.0,0.00025205,2]
[391632767,1760710249985,-302.98599027,0.00025205,2]
[391632768,1760710249996,-500.0,0.00025205,2]
[391632769,1760710250007,-500.0,0.00025205,2]
[391632770,1760710250020,-500.0,0.00025205,2]
[391632771,1760710250030,-180.85057156,0.0002526,2]
[391632772,1760710250041,-500.0,0.0002526,2]
[391632773,1760710250051,-150.0,0.0002526,2]
[391632774,1760710250061,-500.0,0.0002526,2]
[391632775,1760710250071,-1463.19522973,0.00025268,2]
[391632776,1760710250082,-1496.66477289,0.00025268,2]
[391632777,1760710250092,-14995.5047209,0.00025305,3]
[391632778,1760710250102,-500.0,0.00025315,2]
[391632779,1760710250112,-150.0,0.00025315,2]
[391632780,1760710250123,-500.0,0.00025315,2]
[391632781,1760710250134,-20789.6133246,0.00025359,3]
[391632782,1760710250143,-500.0,0.00025369,2]
[391632783,1760710250153,-150.0,0.00025369,2]
[391632784,1760710250163,-342.75296998,0.00025369,2]
[391632785,1760710250173,-500.0,0.00025424,2]
[391632786,1760710250183,-150.0,0.00025424,2]
[391632787,1760710250192,-14995.5047209,0.00025447,3]
[391632788,1760710250202,-14995.5047209,0.00025449,3]
[391632789,1760710250212,-20789.6133246,0.00025457,3]
[391632790,1760710250223,-20789.6133246,0.00025459,3]
[391632791,1760710250233,-14995.5047209,0.00025459,3]
[391632792,1760710250243,-5342.415,0.00025467,10]
[391632793,1760710250252,-291.748,0.00025467,10]
[391632794,1760710250262,-1569.19541462,0.00025469,3]
[391632795,1760710250445,-585.83089932,0.00025469,3]
[391632796,1760710250458,-5363.77815274,0.00025469,3]
[391632797,1760710250471,-405.0,0.00025469,3]
[391632798,1760710250483,-824.99999958,0.00025469,3]
[391632799,1760710250495,-3099.99996894,0.00025469,3]
[391632800,1760710250507,-3420.00000001,0.00025469,3]
[391632801,1760710250604,-500.0,0.00024657,2]
[391632802,1760710250614,-151.0,0.00024657,2]
[391632803,1760710250624,-500.0,0.00024931,2]
[391632804,1760710250636,-5520.80888939,0.00025469,3]
[391632805,1760710250646,-29991.0094417,0.00025469,3]
[391632806,1760710250656,-500.0,0.00025478,2]
[391632807,1760710250666,-500.0,0.00025478,2]
[391632808,1760710250676,-500.0,0.00025478,2]
[391632809,1760710250686,-500.0,0.00025478,2]
[391632810,1760710250696,-500.0,0.00025478,2]
[391632811,1760710250706,-500.0,0.00025479,2]
[391632812,1760710250716,-151.67894546,0.00025479,2]
[391632813,1760710250726,-500.0,0.00025479,2]
[391632814,1760710250736,-500.0,0.00025479,2]
[391632815,1760710250747,-500.0,0.00025479,2]
[391632816,1760710250757,-521.31040891,0.00025479,2]
[391632817,1760710250767,-480.91642837,0.00025479,2]
[391632818,1760710250778,-283.25506108,0.00025479,2]
[391632819,1760710250789,-500.0,0.00025479,2]
[391632820,1760710250799,-456.83713576,0.00025479,2]
[391632821,1760710250809,-500.0,0.00025479,2]
[391632822,1760710250819,-500.0,0.00025479,2]
[391632823,1760710250828,-353.6309922,0.00025479,2]
[391632824,1760710250838,-181.74128224,0.00025479,2]
[391632825,1760710250848,-500.0,0.00025479,2]
[391632826,1760710250858,-500.0,0.00025479,2]
[391632827,1760710250868,-500.0,0.00025479,2]
[391632828,1760710250879,-360.75575629,0.00025479,2]
[391632829,1760710250889,-500.0,0.00025479,2]
[391632830,1760710250899,-500.0,0.00025479,2]
[391632831,1760710250909,-2954.69,0.00025479,2]
[391632832,1760710250919,-500.0,0.00025479,2]
[391632833,1760710250930,-500.0,0.00025479,2]
[391632834,1760710250941,-500.0,0.00025479,2]
[391632835,1760710250953,-1140.79,0.00025479,2]
[391632836,1760710250963,-500.0,0.00025479,2]
[391632837,1760710250973,-500.0,0.00025479,2]
[391632838,1760710250984,-1047.87,0.00025479,2]
[391632839,1760710250994,-1540.18,0.00025479,2]
[391632840,1760710251004,-529.66401805,0.00025479,2]
[391632841,1760710251014,-500.0,0.00025479,2]
[391632842,1760710251026,-467.16625214,0.00025479,2]
[391632843,1760710251035,-590.18985845,0.00025479,2]
[391632844,1760710251045,-500.0,0.00025479,2]
[391632845,1760710251054,-592.85740022,0.00025479,2]
[391632846,1760710251064,-500.0,0.00025479,2]
[391632847,1760710251074,-1000.0,0.00025479,2]
[391632848,1760710251084,-500.0,0.00025479,2]
[391632849,1760710251094,-500.0,0.00025479,2]
[391632850,1760710251104,-500.0,0.00025479,2]
[391632851,1760710251114,-500.0,0.00025479,2]
[391632852,1760710251123,-500.0,0.00025479,2]
[391632853,1760710251135,-500.0,0.00025479,2]
[391632854,1760710251145,-500.0,0.00025479,2]
[391632855,1760710251156,-201.27480091,0.00025479,2]
[391632856,1760710251167,-500.0,0.00025479,2]
[391632857,1760710251178,-255.53521699,0.00025479,2]
[391632858,1760710251191,-500.0,0.00025479,2]
[391632859,1760710251201,-500.0,0.00025479,2]
[391632860,1760710251210,-400.06869535,0.00025479,2]
[391632861,1760710251220,-500.0,0.00025479,2]
[391632862,1760710251230,-500.0,0.00025479,2]
[391632863,1760710251240,-500.0,0.00025479,2]
[391632864,1760710251250,-500.0,0.00025479,2]
[391632865,1760710251262,-500.0,0.00025479,2]
[391632866,1760710251272,-500.0,0.00025479,2]
[391632867,1760710251282,-500.0,0.00025479,2]
[391632868,1760710251293,-591.82,0.00025479,2]
[391632869,1760710251303,-500.0,0.00025479,2]
[391632870,1760710251314,-500.0,0.00025479,2]
[391632871,1760710251324,-500.0,0.00025479,2]
[391632872,1760710251334,-623.02803115,0.00025479,2]
[391632873,1760710251344,-500.0,0.00025479,2]
[391632874,1760710251353,-178.63503207,0.00025479,2]
[391632875,1760710251363,-500.0,0.00025479,2]
[391632876,1760710251373,-525.09,0.00025479,2]
[391632877,1760710251386,-278.4992463,0.00025479,2]
[391632878,1760710251397,-500.0,0.00025479,2]
[391632879,1760710251407,-500.0,0.00025479,2]
[391632880,1760710251417,-897.0,0.00025479,2]
[391632881,1760710251427,-500.0,0.00025479,2]
[391632882,1760710251437,-500.0,0.00025479,2]
[391632883,1760710251448,-500.0,0.00025479,2]
[391632884,1760710251459,-515.74316343,0.00025479,2]
[391632885,1760710251469,-500.0,0.00025479,2]
[391632886,1760710251478,-621.19494245,0.00025479,2]
[391632887,1760710251492,-8.23505755,0.00025479,2]
[391632888,1760710251502,-500.0,0.00025479,2]
[391632889,1760710251512,-411.93290225,0.00025479,2]
[391632890,1760710251525,-88.06709775,0.00025479,2]
[391632891,1760710251535,-465.70869011,0.00025479,2]
[391632892,1760710251547,-34.29130989,0.00025479,2]
[391632893,1760710251556,-500.0,0.00025479,2]
[391632894,1760710251566,-492.91177188,0.00025479,2]
[391632895,1760710251579,-7.08822812,0.00025479,2]
[391632896,1760710251589,-500.0,0.00025479,2]
[391632897,1760710251598,-200.8262899,0.00025479,2]
[391632898,1760710251611,-299.1737101,0.00025479,2]
[391632899,1760710251621,-373.58131258,0.00025479,2]
[391632900,1760710251634,-144.14408188,0.00025479,2]
[391632901,1760710251644,-500.0,0.00025479,2]
[391632902,1760710251653,-451.55217114,0.00025479,2]
[391632903,1760710251663,-500.0,0.00025479,2]
[391632904,1760710251673,-500.0,0.00025479,2]
[391632905,1760710251683,-500.0,0.00025479,2]
[391632906,1760710251693,-500.0,0.00025479,2]
[391632907,1760710251703,-500.0,0.00025479,2]
[391632908,1760710251713,-500.0,0.00025479,2]
[391632909,1760710251724,-1053.96,0.00025479,2]
[391632910,1760710251733,-500.0,0.00025479,2]
[391632911,1760710251743,-300.0,0.00025479,2]
[391632912,1760710251754,-500.0,0.00025479,2]
[391632913,1760710251763,-500.0,0.00025479,2]
[391632914,1760710251774,-500.0,0.00025479,2]
[391632915,1760710251784,-500.0,0.00025479,2]
[391632916,1760710251795,-534.12,0.00025479,2]
[391632917,1760710251805,-500.0,0.00025479,2]
[391632918,1760710251815,-639.86827721,0.00025479,2]
[391632919,1760710251825,-684.51,0.00025479,2]
[391632920,1760710251835,-505.88783805,0.00025479,2]
[391632921,1760710251845,-500.0,0.00025479,2]
[391632922,1760710251855,-500.0,0.00025479,2]
[391632923,1760710251865,-500.0,0.00025479,2]
[391632924,1760710251876,-500.0,0.00025479,2]
[391632925,1760710251888,-500.0,0.00025479,2]
[391632926,1760710252398,-500.0,0.00025479,2]
[391632927,1760710252408,-500.0,0.00025479,2]
[391632928,1760710252418,-372.9601382,0.00025479,2]
[391632929,1760710252427,-500.0,0.00025479,2]
[391632930,1760710252437,-500.0,0.00025479,2]
[391632931,1760710252446,-500.0,0.00025479,2]
[391632932,1760710252455,-500.0,0.00025479,2]
[391632933,1760710252464,-537.59,0.00025489,2]
[391632934,1760710252473,-8815.76190543,0.000255,2]
[391632935,1760710252486,-1184.23809457,0.000255,2]
[391632936,1760710252495,-500.0,0.00025534,2]
[391632937,1760710252504,-500.0,0.00025589,2]
[391632938,1760710252513,-152.0,0.00025631,3]
[391632939,1760710252522,-500.0,0.00025643,2]
[391632940,1760710252532,-500.0,0.00025698,2]
[391632941,1760710252541,-8135.66060536,0.00025712,3]
[391632942,1760710252552,-390.3849186,0.00025712,3]
[391632943,1760710252563,-6469.45919694,0.00025712,3]
[391632944,1760710252573,-20789.6133246,0.00025723,3]
[391632945,1760710252583,-5372.23775869,0.00025733,3]
[391632946,1760710252598,-1211.2,0.00025733,3]
[391632947,1760710252609,-14206.17556591,0.00025733,3]
[391632948,1760710252619,-29991.0094417,0.00025733,3]
[391632949,1760710252628,-639.48,0.00025742,2]
[391632950,1760710252641,-2494.0,0.00025742,2]
[391632951,1760710252650,-41579.2266492,0.00025743,3]
[391632952,1760710252660,-29991.0094417,0.00025743,3]
[391632953,1760710252669,-500.0,0.00025752,2]
[391632954,1760710252678,-500.0,0.00025752,2]
[391632955,1760710252687,-500.0,0.00025752,2]
[391632956,1760710252697,-500.0,0.00025752,2]
[391632957,1760710252706,-500.0,0.00025752,2]
[391632958,1760710252715,-500.0,0.00025753,2]
[391632959,1760710252725,-500.0,0.00025753,2]
[391632960,1760710252734,-206.41680478,0.00025753,2]
[391632961,1760710252743,-575.69756443,0.00025753,2]
[391632962,1760710252753,-500.0,0.00025753,2]
[391632963,1760710252762,-500.0,0.00025753,2]
[391632964,1760710252771,-590.26,0.00025753,2]
[391632965,1760710252780,-500.0,0.00025753,2]
[391632966,1760710252789,-500.0,0.00025753,2]
[391632967,1760710252799,-500.0,0.00025753,2]
[391632968,1760710252809,-500.0,0.00025753,2]
[391632969,1760710252818,-577.94567344,0.00025753,2]
[391632970,1760710252827,-2954.69,0.00025753,2]
[391632971,1760710252836,-494.10688749,0.00025753,2]
[391632972,1760710252845,-500.0,0.00025753,2]
[391632973,1760710252854,-500.03508842,0.00025753,2]
[391632974,1760710252863,-1140.79,0.00025753,2]
[391632975,1760710252872,-280.56388893,0.00025753,2]
[391632976,1760710252883,-500.0,0.00025753,2]
[391632977,1760710252892,-1047.87,0.00025753,2]
[391632978,1760710252902,-1540.18,0.00025753,2]
[391632979,1760710252911,-500.0,0.00025753,2]
[391632980,1760710252920,-500.0,0.00025753,2]
[391632981,1760710252929,-500.0,0.00025753,2]
[391632982,1760710252938,-1000.0,0.00025753,2]
[391632983,1760710252952,-500.0,0.00025753,2]
[391632984,1760710252961,-500.0,0.00025753,2]
[391632985,1760710252970,-500.0,0.00025753,2]
[391632986,1760710252979,-500.0,0.00025753,2]
[391632987,1760710252990,-500.0,0.00025753,2]
[391632988,1760710252999,-500.0,0.00025753,2]
[391632989,1760710253008,-500.0,0.00025753,2]
[391632990,1760710253019,-500.0,0.00025753,2]
[391632991,1760710253028,-500.0,0.00025753,2]
[391632992,1760710253038,-500.0,0.00025753,2]
[391632993,1760710253047,-500.0,0.00025753,2]
[391632994,1760710253056,-500.0,0.00025753,2]
[391632995,1760710253066,-500.0,0.00025753,2]
[391632996,1760710253075,-500.0,0.00025753,2]
[391632997,1760710253084,-500.0,0.00025753,2]
[391632998,1760710253094,-500.0,0.00025753,2]
[391632999,1760710253104,-500.0,0.00025753,2]
[391633000,1760710253113,-591.82,0.00025753,2]
[391633001,1760710253123,-581.44855169,0.00025753,2]
[391633002,1760710253135,-500.0,0.00025753,2]
[391633003,1760710253147,-500.0,0.00025753,2]
[391633004,1760710253157,-500.0,0.00025753,2]
[391633005,1760710253167,-500.0,0.00025753,2]
[391633006,1760710253176,-525.09,0.00025753,2]
[391633007,1760710253186,-500.0,0.00025753,2]
[391633008,1760710253195,-500.0,0.00025753,2]
[391633009,1760710253204,-897.0,0.00025753,2]
[391633010,1760710253215,-500.0,0.00025753,2]
[391633011,1760710253224,-500.0,0.00025753,2]
[391633012,1760710253233,-500.0,0.00025753,2]
[391633013,1760710253243,-500.0,0.00025753,2]
[391633014,1760710253253,-629.43,0.00025753,2]
[391633015,1760710253263,-500.0,0.00025753,2]
[391633016,1760710253272,-500.0,0.00025753,2]
[391633017,1760710253282,-500.0,0.00025753,2]
[391633018,1760710253295,-184.52729893,0.00025753,2]
[391633019,1760710253306,-533.59068712,0.00025753,2]
[391633020,1760710253316,-500.0,0.00025753,2]
[391633021,1760710253327,-611.75019914,0.00025753,2]
[391633022,1760710253337,-500.0,0.00025753,2]
[391633023,1760710253347,-500.0,0.00025753,2]
[391633024,1760710253356,-500.0,0.00025753,2]
[391633025,1760710253365,-500.0,0.00025753,2]
[391633026,1760710253375,-500.0,0.00025753,2]
[391633027,1760710253390,-500.0,0.00025753,2]
[391633028,1760710253399,-500.0,0.00025753,2]
[391633029,1760710253410,-1053.96,0.00025753,2]
[391633030,1760710253420,-571.16176288,0.00025753,2]
[391633031,1760710253429,-300.0,0.00025753,2]
[391633032,1760710253439,-500.0,0.00025753,2]
[391633033,1760710253449,-500.0,0.00025753,2]
[391633034,1760710253458,-500.0,0.00025753,2]
[391633035,1760710253468,-500.0,0.00025753,2]
[391633036,1760710253477,-534.12,0.00025753,2]
[391633037,1760710253487,-500.0,0.00025753,2]
[391633038,1760710253496,-684.51,0.00025753,2]
[391633039,1760710253506,-266.32737731,0.00025753,2]
[391633040,1760710253516,-521.69896138,0.00025753,2]
[391633041,1760710253526,-500.0,0.00025753,2]
[391633042,1760710253536,-500.0,0.00025753,2]
[391633043,1760710253547,-500.0,0.00025753,2]
[391633044,1760710253556,-500.0,0.00025753,2]
[391633045,1760710253565,-500.0,0.00025753,2]
[391633046,1760710253575,-340.30488053,0.00025753,2]
[391633047,1760710253584,-500.0,0.00025753,2]
[391633048,1760710253594,-500.0,0.00025753,2]
[391633049,1760710253603,-500.0,0.00025753,2]
[391633050,1760710253614,-14995.5047209,0.00025776,3]
[391633051,1760710253623,-5770.4,0.00025786,2]
[391633052,1760710253635,-299.99,0.00025786,12]
[391633053,1760710253646,-999.99,0.00025786,2]
[391633054,1760710253655,-9999.99,0.00025786,2]
[391633055,1760710253665,-150.99,0.00025786,2]
[391633056,1760710253675,-3235.71066955,0.00025786,10]
[391633057,1760710253688,-872.26117996,0.00025786,10]
[391633058,1760710253699,-457.41200648,0.00025786,10]
[391633059,1760710253882,-559.51,0.00024657,2]
[391633060,1760710253895,-1364.81614401,0.00025786,10]
[391633061,1760710253905,-1058.49,0.00025786,2]
[391633062,1760710253915,-150.99,0.00025786,2]
[391633063,1760710253925,-500.0,0.00025808,2]
[391633064,1760710253936,-500.0,0.00025863,2]
[391633065,1760710253949,-500.0,0.00025917,2]
[391633066,1760710253959,-205.59379906,0.00025919,2]
[391633067,1760710253968,-471.70005693,0.0002596,3]
[391633068,1760710253982,-1041.49999996,0.0002596,3]
[391633069,1760710253994,-1129.11616765,0.0002596,3]
[391633070,1760710427947,-321.99708816,0.00013963,2]
[391633071,1760710431012,-166.66,0.00013963,2]
[391633072,1760710433002,-432.46858161,0.00013963,2]
[391633073,1760710434435,-300.0,0.00013963,2]
[391633079,1760710836712,160.0,8.126e-05,2]
[391633080,1760710836957,160.0,8.126e-05,2]
[391633081,1760710837175,160.0,8.126e-05,2]
[391633104,1760711250495,706.1,6.851e-05,2]
[391633105,1760711250703,706.1,7.211e-05,2]
[391633106,1760711250904,706.1,7.572e-05,2]
[391633107,1760711251131,706.1,7.933e-05,2]
[391633108,1760711251343,706.1,8.293e-05,2]
[391633109,1760711251564,706.1,8.654e-05,2]
[391633110,1760711251799,706.1,9.014e-05,2]
[391633111,1760711252017,706.1,9.375e-05,2]
[391633112,1760711252248,706.1,9.736e-05,2]
[391633113,1760711252447,706.1,0.00010096,2]
[391633114,1760711252639,706.1,0.00010457,2]
[391633115,1760711252842,706.1,0.00010817,2]
[391633116,1760711253089,706.1,0.00011178,2]
[391633117,1760711253285,706.1,0.00011538,2]
[391633118,1760711253492,585.2,0.00011899,2]
[391633119,1760711253514,120.9,0.00011899,2]
[391633120,1760711253700,706.1,0.0001226,2]
[391633121,1760711253900,706.1,0.0001262,2]
[391633122,1760711267974,-238.61195777,0.00012981,2]
[391633123,1760711270543,-286.02848769,0.00012981,2]
[391633124,1760711273217,-181.45955454,0.00012981,2]
[391633125,1760711273243,-17.00481601,0.00013341,2]
[391633127,1760711275333,-280.73082209,0.00013341,2]
[391633128,1760711281203,-194.09446939,0.00013341,2]
[391633130,1760711315344,500.0,0.00015,30]
[391633131,1760711315799,500.0,0.00015274,30]
[391633132,1760711316327,500.0,0.00015548,30]
[391633133,1760711316822,500.0,0.00015822,30]
[391633151,1760711431940,-214.26989251,0.00013341,2]
[391633152,1760711431952,-500.0,0.00013522,3]
[391633153,1760711431963,-200.0,0.00013699,2]
[391633154,1760711431972,-706.1,0.00013702,2]
[391633155,1760711431983,-500.0,0.00013722,3]
[391633156,1760711431992,-500.0,0.00013722,3]
[391633157,1760711432002,-300.0,0.00013855,2]
[391633158,1760711432012,-250.0,0.00013865,2]
[391633159,1760711432021,-195.0,0.00013865,2]
[391633160,1760711432031,-398.29623249,0.00013876,2]
[391633161,1760711432042,-195.0,0.00013891,2]
[391633162,1760711432052,-1200.0,0.00013893,2]
[391633163,1760711432066,-300.0,0.00013925,2]
[391633164,1760711432076,-249.0,0.00013925,2]
[391633165,1760711432086,-300.0,0.00013925,2]
[391633166,1760711432097,-1200.0,0.00013926,2]
[391633167,1760711432106,-178.24699733,0.00013963,2]
[391633168,1760711432116,-1436.51433023,0.00013963,2]
[391633169,1760711432126,-170.46,0.00013963,2]
[391633170,1760711432136,-564.42,0.00013963,2]
[391633171,1760711432147,-904.19,0.00013963,2]
[391633172,1760711432159,-218.0,0.00014257,2]
[391633173,1760711432168,-868.33809245,0.0001439,2]
[391633174,1760711432178,-150.0,0.000145,2]
[391633175,1760711432188,-150.0,0.000145,5]
[391633176,1760711432199,-1000.0,0.00014567,2]
[391633177,1760711432209,-250.0,0.00014675,2]
[391633178,1760711432219,-500.0,0.00014675,3]
[391633179,1760711432228,-500.0,0.00014675,3]
[391633180,1760711432238,-300.0,0.00014675,2]
[391633181,1760711432248,-524.63279749,0.00014675,2]
[391633182,1760711432258,-150.0,0.00014675,2]
[391633183,1760711432273,-500.0,0.000147,2]
[391633184,1760711432282,-170.94603001,0.000147,2]
[391633185,1760711432292,-150.0,0.000149,2]
[391633186,1760711432302,-163.13552459,0.000149,2]
[391633187,1760711432314,-500.0,0.00014973,2]
[391633188,1760711432326,-500.0,0.00014973,2]
[391633189,1760711432337,-500.0,0.00014973,2]
[391633190,1760711432348,-533.15473545,0.00014973,2]
[391633191,1760711432358,-500.0,0.00014973,2]
[391633192,1760711432367,-500.0,0.00014973,2]
[391633193,1760711432378,-500.0,0.00014973,2]
[391633195,1760711432388,-500.0,0.00014973,2]
[391633197,1760711432397,-500.0,0.00014973,2]
[391633199,1760711432407,-500.0,0.00014973,2]
[391633201,1760711432417,-500.0,0.00014973,2]
[391633202,1760711432427,-500.0,0.00014973,2]
[391633204,1760711432436,-500.0,0.00014973,2]
[391633206,1760711432445,-500.0,0.00014973,2]
[391633207,1760711432454,-501.05788927,0.00014973,2]
[391633208,1760711432464,-500.0,0.00014973,2]
[391633209,1760711432473,-500.0,0.00014973,2]
[391633210,1760711432483,-502.80166226,0.00014973,2]
[391633211,1760711432492,-479.26697898,0.00014973,2]
[391633212,1760711432502,-209.10480573,0.00014982,2]
[391633213,1760711432511,-1556.73627657,0.00014982,2]
[391633214,1760711432520,-171.2593942,0.00014982,2]
[391633215,1760711432530,-151.0,0.00014991,2]
[391633216,1760711432540,-151.0,0.00014991,2]
[391633217,1760711432549,-151.0,0.00014991,2]
[391633218,1760711432559,-151.0,0.00014991,2]
[391633219,1760711432568,-151.0,0.00014991,2]
[391633220,1760711432578,-151.0,0.00014991,2]
[391633221,1760711432591,-151.0,0.00014991,2]
[391633222,1760711432600,-151.0,0.00014991,2]
[391633223,1760711432610,-151.0,0.00014991,2]
[391633224,1760711432620,-151.0,0.00014991,2]
[391633225,1760711432630,-151.0,0.00014991,2]
[391633226,1760711432639,-151.0,0.00014991,2]
[391633227,1760711432649,-151.0,0.00014991,2]
[391633228,1760711432658,-151.0,0.00014991,2]
[391633229,1760711432668,-151.0,0.00014991,2]
[391633230,1760711432677,-151.0,0.00014991,2]
[391633231,1760711432687,-151.0,0.00014991,2]
[391633232,1760711432696,-151.0,0.00014991,2]
[391633233,1760711432706,-151.0,0.00014991,2]
[391633234,1760711432715,-151.0,0.00014991,2]
[391633235,1760711432725,-151.0,0.00014991,2]
[391633236,1760711432734,-151.0,0.00014991,2]
[391633237,1760711432744,-151.0,0.00014991,2]
[391633238,1760711432754,-151.0,0.00014991,2]
[391633239,1760711432763,-231.22904468,0.00014991,2]
[391633240,1760711432772,-151.0,0.00014991,2]
[391633241,1760711432781,-151.0,0.00014991,2]
[391633242,1760711432791,-500.0,0.00014991,2]
[391633243,1760711432800,-500.0,0.00014991,2]
[391633244,1760711432810,-500.0,0.00014991,2]
[391633245,1760711432820,-500.0,0.00014991,2]
[391633246,1760711432830,-500.0,0.00014991,2]
[391633247,1760711432841,-200.0,0.00014991,2]
[391633248,1760711432851,-500.0,0.00014991,2]
[391633249,1760711432861,-500.0,0.00014991,2]
[391633250,1760711432871,-500.0,0.00014991,2]
[391633251,1760711432881,-151.0,0.00014991,2]
[391633252,1760711432891,-151.0,0.00014991,2]
[391633253,1760711432900,-151.0,0.00014991,2]
[391633254,1760711432910,-151.0,0.00014991,2]
[391633255,1760711432919,-151.0,0.00014991,2]
[391633256,1760711432928,-151.0,0.00014991,2]
[391633257,1760711432939,-151.0,0.00014991,2]
[391633258,1760711432948,-151.0,0.00014991,2]
[391633259,1760711432958,-151.0,0.00014991,2]
[391633260,1760711432967,-151.0,0.00014991,2]
[391633261,1760711432976,-151.0,0.00014991,2]
[391633262,1760711432986,-151.0,0.00014991,2]
[391633263,1760711432996,-151.0,0.00014991,2]
[391633264,1760711433006,-151.0,0.00014991,2]
[391633265,1760711433015,-151.0,0.00014991,2]
[391633266,1760711433025,-151.0,0.00014991,2]
[391633267,1760711433035,-197.15620594,0.00014991,2]
[391633268,1760711433045,-500.0,0.00014999,2]
[391633269,1760711433054,-500.0,0.00014999,2]
[391633270,1760711433064,-500.0,0.00014999,2]
[391633271,1760711433074,-500.0,0.00014999,2]
[391633272,1760711433084,-500.0,0.00014999,2]
[391633273,1760711433094,-500.0,0.00014999,2]
[391633274,1760711433103,-575.24301333,0.00014999,2]
[391633275,1760711433113,-500.0,0.00014999,2]
[391633276,1760711433123,-500.0,0.00014999,2]
[391633277,1760711433133,-500.0,0.00014999,2]
[391633278,1760711433143,-500.0,0.00014999,2]
[391633279,1760711433152,-500.0,0.00014999,2]
[391633280,1760711433162,-500.0,0.00014999,2]
[391633281,1760711433171,-500.0,0.00014999,2]
[391633282,1760711433181,-500.0,0.00014999,2]
[391633283,1760711433191,-500.0,0.00014999,2]
[391633284,1760711433201,-500.0,0.00014999,2]
[391633285,1760711433211,-500.0,0.00014999,2]
[391633286,1760711433221,-500.0,0.00014999,2]
[391633287,1760711433230,-500.0,0.00014999,2]
[391633288,1760711433240,-500.0,0.00014999,2]
[391633289,1760711433250,-221.15013174,0.00014999,2]
[391633290,1760711433266,-278.84986826,0.00014999,2]
[391633291,1760711433276,-500.0,0.00014999,2]
[391633292,1760711433286,-500.0,0.00014999,2]
[391633293,1760711433295,-500.0,0.00014999,2]
[391633294,1760711433306,-500.0,0.00014999,2]
[391633295,1760711433316,-500.0,0.00014999,2]
[391633296,1760711433326,-500.0,0.00014999,2]
[391633297,1760711433335,-500.0,0.00014999,2]
[391633298,1760711433347,-500.0,0.00014999,2]
[391633299,1760711433357,-250.0,0.00014999,2]
[391633300,1760711433367,-49674.68670652,0.00015,2]
[391633301,1760711433378,-500.0,0.00015,2]
[391633302,1760711433390,-339.84,0.00015,2]
[391633305,1760711437864,-7339.10975232,0.00015,2]
[391633306,1760711437877,-4446.78268288,0.00015,2]
[391633307,1760711437889,-2673.57849252,0.00015,2]
[391633308,1760711437901,-2898.09,0.00015,2]
[391633309,1760711437912,-56290.92455886,0.00015,2]